fUST/lending_fUST_20250924
["ID","MTS","AMOUNT","RATE_DAILY","PERIOD"]
[387376480,1758708644252,-480.0,0.00019487,2]
[387376482,1758708644261,-480.0,0.00019487,2]
[387376484,1758708644271,-480.0,0.00019487,2]
[387376486,1758708644280,-480.0,0.00019487,2]
[387376488,1758708644290,-480.0,0.00019487,2]
[387376490,1758708644299,-480.0,0.00019487,2]
[387376491,1758708644309,-480.0,0.00019487,2]
[387376492,1758708644318,-480.0,0.00019487,2]
[387376493,1758708644327,-480.0,0.00019487,2]
[387376494,1758708644337,-480.0,0.00019487,2]
[387376495,1758708644346,-480.0,0.00019487,2]
[387376496,1758708644355,-480.0,0.00019487,2]
[387376497,1758708644365,-480.0,0.00019487,2]
[387376498,1758708644374,-480.0,0.00019487,2]
[387376499,1758708644383,-480.0,0.00019487,2]
[387376500,1758708644392,-480.0,0.00019487,2]
[387376501,1758708644401,-480.0,0.00019487,2]
[387376502,1758708644410,-480.0,0.00019487,2]
[387376503,1758708644419,-730.93,0.00019487,2]
[387376504,1758708644427,-480.0,0.00019487,2]
[387376505,1758708644436,-480.0,0.00019487,2]
[387376506,1758708644445,-1104.59,0.00019487,2]
[387376507,1758708644454,-480.0,0.00019487,2]
[387376508,1758708644463,-480.0,0.00019487,2]
[387376509,1758708644472,-480.0,0.00019487,2]
[387376510,1758708644481,-480.0,0.00019487,2]
[387376511,1758708644491,-480.0,0.00019487,2]
[387376512,1758708644500,-480.0,0.00019487,2]
[387376513,1758708644509,-480.0,0.00019488,2]
[387376514,1758708644519,-480.0,0.00019488,2]
[387376515,1758708644528,-480.0,0.00019488,2]
[387376517,1758708644537,-480.0,0.00019488,2]
[387376519,1758708644546,-480.0,0.00019488,2]
[387376521,1758708644557,-480.0,0.00019488,2]
[387376523,1758708644567,-480.0,0.00019488,2]
[387376525,1758708644576,-480.0,0.00019488,2]
[387376527,1758708644585,-480.0,0.00019488,2]
[387376529,1758708644594,-480.0,0.00019488,2]
[387376531,1758708644603,-480.0,0.00019488,2]
[387376532,1758708644612,-480.0,0.00019488,2]
[387376534,1758708644621,-480.0,0.00019488,2]
[387376536,1758708644633,-480.0,0.00019488,2]
[387376538,1758708644642,-480.0,0.00019488,2]
[387376540,1758708644651,-480.0,0.00019488,2]
[387376541,1758708644660,-501.43350955,0.00019488,2]
[387376543,1758708644669,-480.0,0.00019488,2]
[387376545,1758708644679,-1259.93,0.00019488,2]
[387376547,1758708644689,-480.0,0.00019488,2]
[387376549,1758708644698,-480.0,0.00019488,2]
[387376551,1758708644709,-617.37,0.00019488,2]
[387376553,1758708644718,-480.0,0.00019488,2]
[387376555,1758708644727,-480.0,0.00019488,2]
[387376557,1758708644737,-480.0,0.00019488,2]
[387376559,1758708644747,-1822.67,0.00019488,2]
[387376561,1758708644756,-480.0,0.00019488,2]
[387376563,1758708644764,-480.0,0.00019488,2]
[387376565,1758708644773,-480.0,0.00019488,2]
[387376566,1758708644782,-480.0,0.00019488,2]
[387376568,1758708644792,-480.0,0.00019488,2]
[387376570,1758708644801,-480.0,0.00019488,2]
[387376572,1758708644810,-480.0,0.00019488,2]
[387376574,1758708644820,-748.15,0.00019488,2]
[387376576,1758708644829,-483.52221133,0.00019488,2]
[387376578,1758708644838,-312.24667651,0.00019488,2]
[387376580,1758708644847,-1413.87,0.00019489,2]
[387376582,1758708644857,-480.0,0.00019489,2]
[387376584,1758708644866,-379.69330479,0.00019489,2]
[387376586,1758708644876,-480.0,0.00019489,2]
[387376588,1758708644885,-480.0,0.00019489,2]
[387376590,1758708644895,-480.0,0.00019489,2]
[387376592,1758708644905,-480.0,0.00019489,2]
[387376594,1758708644914,-491.37079064,0.00019489,2]
[387376596,1758708644923,-505.55234214,0.00019489,2]
[387376598,1758708644932,-480.0,0.00019489,2]
[387376600,1758708644941,-503.60472979,0.00019489,2]
[387376601,1758708644950,-480.0,0.00019489,2]
[387376603,1758708644959,-480.0,0.00019489,2]
[387376605,1758708644969,-480.0,0.00019489,2]
[387376607,1758708644978,-480.0,0.00019489,2]
[387376609,1758708644987,-480.0,0.00019489,2]
[387376611,1758708644996,-480.0,0.00019489,2]
[387376613,1758708645006,-480.0,0.00019489,2]
[387376615,1758708645015,-480.0,0.00019489,2]
[387376617,1758708645024,-480.0,0.00019489,2]
[387376619,1758708645033,-480.0,0.00019489,2]
[387376621,1758708645042,-480.0,0.00019489,2]
[387376623,1758708645052,-480.0,0.0001949,2]
[387376625,1758708645061,-151.51185202,0.0001949,2]
[387376627,1758708645070,-160.78359547,0.0001949,2]
[387376629,1758708645081,-480.0,0.0001949,2]
[387376631,1758708645090,-480.0,0.0001949,2]
[387376633,1758708645099,-480.0,0.0001949,2]
[387376635,1758708645108,-480.0,0.0001949,2]
[387376637,1758708645118,-480.0,0.0001949,2]
[387376639,1758708645127,-480.0,0.0001949,2]
[387376641,1758708645136,-480.0,0.0001949,2]
[387376642,1758708645145,-480.0,0.0001949,2]
[387376644,1758708645155,-480.0,0.0001949,2]
[387376646,1758708645164,-1174.77,0.0001949,2]
[387376648,1758708645173,-3389.87,0.0001949,2]
[387376650,1758708645182,-480.0,0.00019491,2]
[387376652,1758708645191,-651.63,0.00019493,2]
[387376654,1758708645200,-480.0,0.00019493,2]
[387376656,1758708645210,-568.14,0.00019493,2]
[387376658,1758708645219,-480.0,0.00019493,2]
[387376660,1758708645228,-480.0,0.00019758,2]
[387376662,1758708645238,-480.0,0.00019758,2]
[387376664,1758708645247,-480.0,0.00019758,2]
[387376666,1758708645256,-618.16,0.00019758,2]
[387376668,1758708645266,-171.8886887,0.00019758,2]
[387376670,1758708645275,-500.0,0.00019759,2]
[387376672,1758708645285,-1329.27,0.0001976,2]
[387376674,1758708645294,-480.0,0.0001976,2]
[387376676,1758708645303,-480.0,0.0001976,2]
[387376678,1758708645312,-480.0,0.0001976,2]
[387376680,1758708645321,-480.0,0.0001976,2]
[387376682,1758708645331,-857.25,0.0001976,2]
[387376684,1758708645340,-971.45,0.0001976,2]
[387376686,1758708645349,-480.0,0.0001976,2]
[387376688,1758708645358,-480.0,0.0001976,2]
[387376690,1758708645367,-564.2111252,0.0001976,2]
[387376691,1758708645376,-480.0,0.0001976,2]
[387376693,1758708645386,-480.0,0.0001976,2]
[387376695,1758708645395,-480.0,0.0001976,2]
[387376697,1758708645404,-480.0,0.0001976,2]
[387376699,1758708645414,-547.28,0.0001976,2]
[387376701,1758708645423,-480.0,0.0001976,2]
[387376703,1758708645432,-480.0,0.0001976,2]
[387376705,1758708645441,-366.93682105,0.0001976,2]
[387376707,1758708645451,-480.0,0.0001976,2]
[387376716,1758708645525,-1696.59,0.0001976,2]
[387376718,1758708645534,-480.0,0.0001976,2]
[387376720,1758708645544,-562.14,0.0001976,2]
[387376722,1758708645553,-181.23,0.0001976,2]
[387376724,1758708645563,-480.0,0.00019761,2]
[387376726,1758708645572,-480.000001,0.00019761,2]
[387376728,1758708645581,-480.0,0.00019761,2]
[387376731,1758708645591,-480.0,0.00019761,2]
[387376734,1758708645600,-480.0,0.00019761,2]
[387376736,1758708645609,-256.84720001,0.00019761,2]
[387376738,1758708645618,-480.0,0.00019761,2]
[387376740,1758708645628,-365.95855477,0.00019761,2]
[387376742,1758708645641,-480.0,0.00019761,2]
[387376744,1758708645651,-480.0,0.00019761,2]
[387376746,1758708645660,-497.74432723,0.00019761,2]
[387376748,1758708645669,-480.0,0.00019761,2]
[387376750,1758708645678,-480.0,0.00019761,2]
[387376752,1758708645688,-480.0,0.00019761,2]
[387376754,1758708645697,-480.0,0.00019761,2]
[387376756,1758708645706,-480.0,0.00019761,2]
[387376758,1758708645715,-480.0,0.00019761,2]
[387376760,1758708645724,-495.26397762,0.00019761,2]
[387376762,1758708645734,-480.0,0.00019761,2]
[387376764,1758708645743,-480.0,0.00019761,2]
[387376766,1758708645752,-480.0,0.00019761,2]
[387376768,1758708645762,-480.0,0.00019761,2]
[387376770,1758708645772,-480.0,0.00019761,2]
[387376772,1758708645781,-482.09881616,0.00019761,2]
[387376774,1758708645790,-480.0,0.00019761,2]
[387376776,1758708645799,-480.0,0.00019761,2]
[387376778,1758708645808,-480.0,0.00019761,2]
[387376780,1758708645818,-480.0,0.00019761,2]
[387376782,1758708645827,-480.0,0.00019761,2]
[387376784,1758708645836,-480.0,0.00019761,2]
[387376786,1758708645846,-480.0,0.00019761,2]
[387376788,1758708645856,-480.0,0.00019761,2]
[387376790,1758708645865,-480.0,0.00019761,2]
[387376792,1758708645874,-480.0,0.00019761,2]
[387376794,1758708645884,-480.0,0.00019761,2]
[387376796,1758708645893,-480.0,0.00019761,2]
[387376798,1758708645902,-480.0,0.00019761,2]
[387376799,1758708645912,-480.0,0.00019761,2]
[387376801,1758708645921,-730.93,0.00019761,2]
[387376803,1758708645931,-480.0,0.00019761,2]
[387376805,1758708645940,-480.0,0.00019761,2]
[387376808,1758708645951,-1104.59,0.00019761,2]
[387376810,1758708645960,-480.0,0.00019761,2]
[387376811,1758708645969,-480.0,0.00019761,2]
[387376813,1758708645978,-480.0,0.00019761,2]
[387376815,1758708645988,-480.0,0.00019761,2]
[387376817,1758708645997,-480.0,0.00019761,2]
[387376819,1758708646007,-480.0,0.00019761,2]
[387376821,1758708646016,-608.86904514,0.00019762,2]
[387376823,1758708646025,-494.97038218,0.00019762,2]
[387376825,1758708646035,-480.0,0.00019762,2]
[387376827,1758708646044,-480.0,0.00019762,2]
[387376829,1758708646055,-480.0,0.00019762,2]
[387376831,1758708646064,-480.0,0.00019762,2]
[387376833,1758708646074,-480.0,0.00019762,2]
[387376835,1758708646084,-480.0,0.00019762,2]
[387376837,1758708646093,-480.0,0.00019762,2]
[387376839,1758708646102,-350.84065855,0.00019762,2]
[387376841,1758708646113,-480.0,0.00019762,2]
[387376843,1758708646123,-480.0,0.00019762,2]
[387376845,1758708646132,-480.0,0.00019762,2]
[387376847,1758708646141,-480.0,0.00019762,2]
[387376849,1758708646150,-1259.93,0.00019762,2]
[387376851,1758708646159,-480.0,0.00019762,2]
[387376853,1758708646169,-480.0,0.00019762,2]
[387376855,1758708646178,-617.37,0.00019762,2]
[387376857,1758708646187,-480.0,0.00019762,2]
[387376859,1758708646197,-480.0,0.00019762,2]
[387376861,1758708646206,-1822.67,0.00019762,2]
[387376862,1758708646215,-480.0,0.00019762,2]
[387376864,1758708646224,-480.0,0.00019762,2]
[387376866,1758708646234,-480.0,0.00019762,2]
[387376868,1758708646243,-480.0,0.00019762,2]
[387376870,1758708646253,-480.0,0.00019762,2]
[387376872,1758708646262,-480.0,0.00019762,2]
[387376874,1758708646271,-480.0,0.00019762,2]
[387376876,1758708646280,-748.15,0.00019762,2]
[387376878,1758708646289,-480.0,0.00019763,2]
[387376880,1758708646299,-480.0,0.00019763,2]
[387376882,1758708646308,-480.0,0.00019763,2]
[387376884,1758708646318,-480.0,0.00019763,2]
[387376886,1758708646327,-480.0,0.00019763,2]
[387376888,1758708646336,-480.0,0.00019763,2]
[387376890,1758708646346,-480.0,0.00019763,2]
[387376892,1758708646355,-480.0,0.00019763,2]
[387376894,1758708646365,-480.0,0.00019763,2]
[387376896,1758708646374,-480.0,0.00019763,2]
[387376898,1758708646383,-480.0,0.00019763,2]
[387376900,1758708646392,-480.0,0.00019763,2]
[387376902,1758708646402,-480.0,0.00019763,2]
[387376904,1758708646411,-151.0,0.00019763,2]
[387376905,1758708646421,-152.395364,0.00019763,2]
[387376907,1758708646430,-247.179689,0.00019763,2]
[387376909,1758708646439,-480.0,0.00019763,2]
[387376911,1758708646448,-480.0,0.00019763,2]
[387376913,1758708646457,-480.0,0.00019764,2]
[387376915,1758708646466,-487.49975505,0.00019764,2]
[387376917,1758708646476,-480.0,0.00019764,2]
[387376919,1758708646485,-480.0,0.00019764,2]
[387376921,1758708646494,-480.0,0.00019764,2]
[387376923,1758708646503,-152.765292,0.00019764,2]
[387376925,1758708646512,-151.940362,0.00019764,2]
[387376927,1758708646522,-480.0,0.00019764,2]
[387376929,1758708646531,-480.0,0.00019764,2]
[387376931,1758708646540,-480.0,0.00019764,2]
[387376933,1758708646549,-480.0,0.00019764,2]
[387376934,1758708646558,-1174.77,0.00019764,2]
[387376936,1758708646567,-3389.87,0.00019764,2]
[387376938,1758708646576,-480.0,0.00019765,2]
[387376940,1758708646586,-651.63,0.00019767,2]
[387376942,1758708646595,-480.0,0.00019767,2]
[387376944,1758708646605,-568.14,0.00019767,2]
[387376946,1758708646614,-480.0,0.00019767,2]
[387376948,1758708646623,-2095.73810878,0.000199,2]
[387376950,1758708646634,-500.01943084,0.00019921,2]
[387376952,1758708646645,-500.0,0.00019921,2]
[387376954,1758708646654,-1000.0,0.00019921,2]
[387376955,1758708646663,-500.0,0.00019921,2]
[387376957,1758708646673,-500.0,0.00019921,2]
[387376959,1758708646684,-500.0,0.00019921,2]
[387376961,1758708646693,-500.0,0.00019921,2]
[387376963,1758708646702,-1000.0,0.00019921,2]
[387376965,1758708646712,-500.0,0.00019921,2]
[387376967,1758708646721,-500.0,0.00019921,2]
[387376969,1758708646731,-420.0,0.00019933,2]
[387376971,1758708646739,-301.0,0.00019933,2]
[387376973,1758708646749,-420.0,0.00019933,2]
[387376975,1758708646758,-420.0,0.00019933,2]
[387376977,1758708646767,-420.0,0.00019933,2]
[387376979,1758708646776,-160.0,0.00019944,2]
[387376981,1758708646785,-1680.0,0.0001996,2]
[387376983,1758708646794,-157.0,0.0002,3]
[387376985,1758708646803,-151.0,0.0002,2]
[387376987,1758708646813,-151.0,0.0002,2]
[387376989,1758708646822,-151.82687,0.0002,2]
[387376990,1758708646831,-1000.0,0.00020021,2]
[387376992,1758708646842,-480.0,0.00020032,2]
[387376994,1758708646852,-480.0,0.00020032,2]
[387376996,1758708646860,-480.0,0.00020032,2]
[387376998,1758708646869,-618.16,0.00020032,2]
[387377000,1758708646879,-171.88868871,0.00020032,2]
[387377002,1758708646889,-1329.27,0.00020034,2]
[387377004,1758708646899,-480.0,0.00020034,2]
[387377006,1758708646909,-499.93643664,0.00020034,2]
[387377008,1758708646918,-427.06741731,0.00020034,2]
[387377015,1758708646984,-480.0,0.00020034,2]
[387377016,1758708647001,-857.25,0.00020034,2]
[387377017,1758708647011,-971.45,0.00020034,2]
[387377018,1758708647021,-480.0,0.00020034,2]
[387377019,1758708647030,-480.0,0.00020034,2]
[387377020,1758708647040,-480.0,0.00020034,2]
[387377021,1758708647049,-480.0,0.00020034,2]
[387377022,1758708647059,-480.0,0.00020034,2]
[387377023,1758708647068,-547.28,0.00020034,2]
[387377024,1758708647079,-193.40296368,0.00020034,2]
[387377025,1758708647089,-480.0,0.00020034,2]
[387377026,1758708647098,-480.0,0.00020034,2]
[387377027,1758708647107,-1696.59,0.00020034,2]
[387377028,1758708647117,-480.0,0.00020034,2]
[387377030,1758708647127,-562.14,0.00020034,2]
[387377032,1758708647136,-480.0,0.00020035,2]
[387377034,1758708647146,-480.0,0.00020035,2]
[387377036,1758708647155,-480.0,0.00020035,2]
[387377038,1758708647164,-480.0,0.00020035,2]
[387377040,1758708647174,-480.0,0.00020035,2]
[387377042,1758708647183,-480.0,0.00020035,2]
[387377044,1758708647192,-480.0,0.00020035,2]
[387377046,1758708647202,-480.0,0.00020035,2]
[387377048,1758708647211,-480.0,0.00020035,2]
[387377050,1758708647220,-151.0,0.00020035,2]
[387377052,1758708647229,-599.91252107,0.00020035,2]
[387377054,1758708647238,-151.0,0.00020035,2]
[387377056,1758708647248,-605.40130858,0.00020035,2]
[387377058,1758708647257,-480.0,0.00020035,2]
[387377060,1758708647266,-480.0,0.00020035,2]
[387377062,1758708647276,-480.0,0.00020035,2]
[387377064,1758708647285,-480.0,0.00020035,2]
[387377066,1758708647294,-480.0,0.00020035,2]
[387377068,1758708647303,-480.0,0.00020035,2]
[387377070,1758708647312,-545.98098976,0.00020035,2]
[387377072,1758708647322,-480.0,0.00020035,2]
[387377074,1758708647331,-480.0,0.00020035,2]
[387377076,1758708647341,-480.0,0.00020035,2]
[387377078,1758708647350,-480.0,0.00020035,2]
[387377080,1758708647359,-480.0,0.00020035,2]
[387377082,1758708647368,-480.0,0.00020035,2]
[387377084,1758708647377,-480.0,0.00020035,2]
[387377086,1758708647387,-480.0,0.00020035,2]
[387377088,1758708647396,-480.0,0.00020035,2]
[387377090,1758708647406,-480.0,0.00020035,2]
[387377092,1758708647415,-480.0,0.00020035,2]
[387377094,1758708647424,-333.33041697,0.00020035,2]
[387377096,1758708647433,-480.0,0.00020035,2]
[387377098,1758708647442,-480.0,0.00020035,2]
[387377100,1758708647451,-730.93,0.00020035,2]
[387377102,1758708647460,-480.0,0.00020035,2]
[387377104,1758708647470,-480.0,0.00020035,2]
[387377106,1758708647479,-1104.59,0.00020035,2]
[387377108,1758708647490,-480.0,0.00020035,2]
[387377110,1758708647499,-561.66,0.00020035,2]
[387377112,1758708647508,-480.0,0.00020035,2]
[387377114,1758708647517,-480.0,0.00020035,2]
[387377116,1758708647527,-480.0,0.00020036,2]
[387377119,1758708647536,-480.0,0.00020036,2]
[387377121,1758708647546,-480.0,0.00020036,2]
[387377123,1758708647556,-480.0,0.00020036,2]
[387377125,1758708647565,-480.0,0.00020036,2]
[387377127,1758708647575,-480.0,0.00020036,2]
[387377129,1758708647584,-151.0,0.00020036,2]
[387377131,1758708647593,-480.0,0.00020036,2]
[387377133,1758708647602,-203.347964,0.00020036,2]
[387377135,1758708647611,-152.037493,0.00020036,2]
[387377137,1758708647621,-385.98215865,0.00020036,2]
[387377139,1758708647630,-480.0,0.00020036,2]
[387377141,1758708647643,-480.0,0.00020036,2]
[387377143,1758708647653,-1259.93,0.00020036,2]
[387377145,1758708647662,-480.0,0.00020036,2]
[387377147,1758708647672,-617.37,0.00020036,2]
[387377149,1758708647683,-480.0,0.00020036,2]
[387377151,1758708647692,-480.0,0.00020036,2]
[387377153,1758708647702,-1822.67,0.00020036,2]
[387377155,1758708647711,-480.0,0.00020036,2]
[387377157,1758708647721,-480.0,0.00020036,2]
[387377159,1758708647730,-480.0,0.00020036,2]
[387377161,1758708647740,-480.0,0.00020036,2]
[387377163,1758708647749,-480.0,0.00020036,2]
[387377165,1758708647758,-480.0,0.00020036,2]
[387377167,1758708647767,-480.0,0.00020036,2]
[387377169,1758708647777,-748.15,0.00020036,2]
[387377171,1758708647786,-480.0,0.00020037,2]
[387377173,1758708647795,-480.0,0.00020037,2]
[387377175,1758708647804,-480.0,0.00020037,2]
[387377177,1758708647813,-480.0,0.00020037,2]
[387377179,1758708647823,-480.0,0.00020037,2]
[387377181,1758708647833,-480.0,0.00020037,2]
[387377183,1758708647842,-480.0,0.00020037,2]
[387377185,1758708647851,-480.0,0.00020037,2]
[387377187,1758708647861,-480.0,0.00020037,2]
[387377189,1758708647870,-238.23649263,0.00020037,2]
[387377191,1758708647879,-480.0,0.00020037,2]
[387377193,1758708647889,-480.0,0.00020037,2]
[387377195,1758708647898,-491.18135711,0.00020038,2]
[387377197,1758708647908,-480.0,0.00020038,2]
[387377199,1758708647918,-480.0,0.00020038,2]
[387377201,1758708647927,-480.0,0.00020038,2]
[387377203,1758708647937,-480.0,0.00020038,2]
[387377205,1758708647946,-480.0,0.00020038,2]
[387377207,1758708647956,-1174.77,0.00020038,2]
[387377209,1758708647965,-3389.87,0.00020038,2]
[387377211,1758708647974,-651.63,0.00020041,2]
[387377213,1758708647983,-480.0,0.00020041,2]
[387377215,1758708647993,-568.14,0.00020041,2]
[387377217,1758708648002,-487.05629837,0.00020041,2]
[387377219,1758708648011,-480.0,0.00020306,2]
[387377221,1758708648021,-480.0,0.00020306,2]
[387377223,1758708648030,-480.0,0.00020306,2]
[387377225,1758708648040,-618.16,0.00020306,2]
[387377227,1758708648049,-1329.27,0.00020308,2]
[387377229,1758708648058,-480.0,0.00020308,2]
[387377231,1758708648068,-480.0,0.00020308,2]
[387377233,1758708648077,-857.25,0.00020308,2]
[387377235,1758708648087,-971.45,0.00020308,2]
[387377237,1758708648097,-480.0,0.00020308,2]
[387377239,1758708648106,-480.0,0.00020308,2]
[387377241,1758708648116,-480.0,0.00020308,2]
[387377243,1758708648126,-480.0,0.00020308,2]
[387377245,1758708648135,-480.0,0.00020308,2]
[387377247,1758708648145,-547.28,0.00020308,2]
[387377249,1758708648154,-480.0,0.00020308,2]
[387377252,1758708648163,-480.0,0.00020308,2]
[387377254,1758708648172,-1696.59,0.00020308,2]
[387377255,1758708648182,-480.0,0.00020308,2]
[387377257,1758708648191,-562.14,0.00020308,2]
[387377259,1758708648200,-480.0,0.00020309,2]
[387377261,1758708648209,-480.0,0.00020309,2]
[387377263,1758708648218,-389.38097476,0.00020309,2]
[387377265,1758708648228,-480.0,0.00020309,2]
[387377267,1758708648237,-480.0,0.00020309,2]
[387377270,1758708648247,-480.0,0.00020309,2]
[387377272,1758708648257,-480.0,0.00020309,2]
[387377274,1758708648266,-480.0,0.00020309,2]
[387377276,1758708648276,-480.0,0.00020309,2]
[387377283,1758708648285,-480.0,0.00020309,2]
[387377285,1758708648356,-480.0,0.00020309,2]
[387377288,1758708648366,-480.0,0.00020309,2]
[387377290,1758708648375,-480.0,0.00020309,2]
[387377291,1758708648385,-480.0,0.00020309,2]
[387377294,1758708648395,-480.0,0.00020309,2]
[387377295,1758708648404,-480.0,0.00020309,2]
[387377297,1758708648415,-480.0,0.00020309,2]
[387377299,1758708648425,-480.0,0.00020309,2]
[387377301,1758708648434,-480.0,0.00020309,2]
[387377303,1758708648443,-480.0,0.00020309,2]
[387377305,1758708648453,-480.0,0.00020309,2]
[387377307,1758708648463,-480.0,0.00020309,2]
[387377309,1758708648473,-480.0,0.00020309,2]
[387377311,1758708648482,-730.93,0.00020309,2]
[387377313,1758708648492,-480.0,0.00020309,2]
[387377315,1758708648501,-480.0,0.00020309,2]
[387377317,1758708648511,-1104.59,0.00020309,2]
[387377319,1758708648520,-480.0,0.00020309,2]
[387377321,1758708648529,-480.0,0.00020309,2]
[387377323,1758708648539,-480.0,0.00020309,2]
[387377325,1758708648548,-480.0,0.0002031,2]
[387377327,1758708648557,-480.0,0.0002031,2]
[387377329,1758708648567,-480.0,0.0002031,2]
[387377331,1758708648576,-480.0,0.0002031,2]
[387377333,1758708648586,-480.0,0.0002031,2]
[387377335,1758708648595,-480.0,0.0002031,2]
[387377337,1758708648604,-480.0,0.0002031,2]
[387377339,1758708648614,-480.0,0.0002031,2]
[387377341,1758708648623,-1259.93,0.0002031,2]
[387377343,1758708648633,-480.0,0.0002031,2]
[387377345,1758708648648,-617.37,0.0002031,2]
[387377347,1758708648658,-480.0,0.0002031,2]
[387377349,1758708648667,-530.58117277,0.0002031,2]
[387377352,1758708648679,-1822.67,0.0002031,2]
[387377353,1758708648688,-480.0,0.0002031,2]
[387377356,1758708648698,-480.0,0.0002031,2]
[387377358,1758708648708,-480.0,0.0002031,2]
[387377359,1758708648719,-480.0,0.0002031,2]
[387377361,1758708648731,-552.74,0.0002031,2]
[387377363,1758708648751,-480.0,0.0002031,2]
[387377365,1758708648761,-748.15,0.0002031,2]
[387377367,1758708648773,-480.0,0.00020311,2]
[387377370,1758708648792,-492.67169142,0.00020311,2]
[387377371,1758708648815,-480.0,0.00020311,2]
[387377374,1758708648825,-480.0,0.00020311,2]
[387377376,1758708648834,-208.04574412,0.00020311,2]
[387377378,1758708648844,-480.0,0.00020311,2]
[387377380,1758708648854,-480.0,0.00020311,2]
[387377382,1758708648863,-480.0,0.00020311,2]
[387377384,1758708648873,-480.0,0.00020311,2]
[387377385,1758708648882,-480.0,0.00020312,2]
[387377388,1758708648892,-480.0,0.00020312,2]
[387377389,1758708648901,-480.0,0.00020312,2]
[387377391,1758708648911,-480.0,0.00020312,2]
[387377394,1758708648921,-480.0,0.00020312,2]
[387377396,1758708648930,-1174.77,0.00020312,2]
[387377398,1758708648940,-3389.87,0.00020312,2]
[387377400,1758708648950,-651.63,0.00020315,2]
[387377402,1758708648961,-480.0,0.00020315,2]
[387377404,1758708648972,-568.14,0.00020315,2]
[387377406,1758708648981,-2827.74,0.00020417,2]
[387377408,1758708648991,-1500.0,0.00020468,2]
[387377409,1758708649000,-500.0,0.00020476,2]
[387377411,1758708649011,-260.0,0.00020492,2]
[387377413,1758708649021,-500.0,0.00020506,2]
[387377415,1758708649030,-500.0,0.00020506,2]
[387377417,1758708649040,-500.0,0.00020537,2]
[387377419,1758708649050,-1975.16340795,0.00020571,2]
[387377421,1758708649059,-910.96,0.00020572,3]
[387377423,1758708649068,-455.48,0.00020572,3]
[387377425,1758708649078,-881.08,0.00020573,3]
[387377427,1758708649088,-1821.94,0.00020573,3]
[387377429,1758708649098,-480.0,0.0002058,2]
[387377431,1758708649107,-480.0,0.0002058,2]
[387377433,1758708649117,-480.0,0.0002058,2]
[387377435,1758708649126,-618.16,0.0002058,2]
[387377437,1758708649136,-1329.27,0.00020582,2]
[387377440,1758708649145,-480.0,0.00020582,2]
[387377442,1758708649155,-857.25,0.00020582,2]
[387377444,1758708649164,-971.45,0.00020582,2]
[387377445,1758708649173,-480.0,0.00020582,2]
[387377447,1758708649182,-480.0,0.00020582,2]
[387377449,1758708649193,-480.0,0.00020582,2]